bitfinex/quotes_ETHUSD_20220201
["timestamp","ask_amount","ask_price","bid_price","bid_amount"]
[1643676126265,1.56816543,2683.9,2683.7,0.04206334]
[1643676126475,2.0494099,2684.3,2683.5,0.04320019]
[1643676126668,1.56808272,2684.2,2683.8,0.1862]
[1643676126869,1.1736,2684.8,2683.6,0.535]
[1643676126870,1.3598,2684.8,2683.6,2.0212]
[1643676127067,1.56801295,2684.7,2683.9,0.04092649]
[1643676127368,1.56801295,2684.7,2684.1,0.93142]
[1643676127564,0.1862,2684.9,2684.1,0.93142]
[1643676127565,1.56801295,2684.6,2684.1,0.93142]
[1643676127772,1.56801295,2684.5,2684.1,0.93142]
[1643676127968,1.56801295,2684.4,2684.1,0.93142]
[1643676128238,0.93143,2684.8,2684.1,0.93142]
[1643676128435,1.56800739,2684.7,2684.1,0.93142]
[1643676128639,1.86800739,2684.7,2684.1,0.93142]
[1643676128835,1.56800739,2684.6,2684.1,0.93142]
[1643676129236,1.56800739,2684.5,2684.1,0.93142]
[1643676129534,1.56800739,2684.4,2684.1,0.93142]
[1643676129735,1.56800739,2684.3,2684.1,0.93142]
[1643676130037,0.93147,2684.7,2684.1,0.93142]
[1643676130337,1.86788273,2684.6,2684.1,0.93142]
[1643676130536,1.56788273,2684.5,2683.9,3.8955]
[1643676130937,1.56788273,2684.5,2684.0,0.04035807]
[1643676131436,1.56788273,2684.5,2684.0,1.38821986]
[1643676131635,1.56788273,2684.4,2684.1,0.1862]
[1643676131836,1.56788273,2684.3,2684.1,0.1862]
[1643676132063,1.56788273,2684.2,2684.0,0.97182807]
[1643676132264,0.3,2684.7,2684.0,0.97182807]
[1643676132466,1.56787271,2684.6,2684.0,0.97182807]
[1643676132866,1.56787271,2684.5,2684.0,0.97182807]
[1643676134269,0.335571,2684.8,2684.0,0.97182807]
[1643676134270,1.56787271,2684.4,2684.0,0.97182807]
[1643676134471,0.18579,2685.3,2684.0,0.97182807]
[1643676134472,0.88718908,2685.2,2684.0,1.50682807]
[1643676134663,1.56780652,2685.1,2684.0,2.73262807]
[1643676134868,0.70098908,2685.0,2684.1,1.0]
[1643676135068,1.56780652,2684.9,2684.3,0.93134]
[1643676135268,1.56780652,2684.9,2684.1,1.0]
[1643676135269,1.56780652,2684.8,2684.1,1.0]
[1643676135469,1.56780652,2684.7,2684.0,1.98693807]
[1643676135726,1.56780652,2684.6,2684.0,1.26615807]
[1643676135932,1.56780652,2684.5,2684.0,1.26615807]
[1643676136132,1.75400652,2684.5,2684.0,1.26615807]
[1643676136465,1.51780652,2684.4,2684.0,0.04035807]
[1643676136630,0.70098908,2684.7,2684.0,0.04035807]
[1643676136832,0.1862,2684.8,2684.0,0.04035807]
[1643676137031,0.3,2684.7,2684.0,0.04035807]
[1643676137233,0.1862,2684.8,2684.1,0.93134]
[1643676137833,2.19487594,2684.8,2684.1,0.93134]
[1643676138034,2.19487594,2684.8,2684.0,0.04035807]
[1643676138035,0.70098908,2684.6,2684.0,0.04035807]
[1643676138233,1.18718908,2684.6,2684.0,0.04035807]
[1643676138433,0.3,2684.6,2683.9,0.04092649]
[1643676138634,1.00098908,2684.6,2683.9,0.04092649]
[1643676138833,0.3,2684.6,2683.9,0.04092649]
[1643676139037,0.9315436,2684.5,2683.9,0.04092649]
[1643676139234,1.81866908,2684.7,2683.9,0.04092649]
[1643676139460,0.70098908,2684.8,2684.0,0.43226285]
[1643676139706,0.70098908,2684.8,2683.9,1.90369649]
[1643676139869,2.10998908,2685.0,2683.9,2.20369649]
[1643676140068,0.70098908,2684.9,2684.0,0.22655807]
[1643676140270,0.70098908,2684.8,2684.0,0.22655807]
[1643676140570,0.70098908,2684.7,2684.0,0.22655807]
[1643676140769,0.70098908,2684.7,2684.0,1.15801807]
[1643676141174,1.63242188,2684.8,2684.0,1.15801807]
[1643676141372,0.70098908,2684.8,2684.0,0.22655807]
[1643676141576,0.70098908,2684.7,2684.0,0.22655807]
[1643676141771,0.1862,2684.6,2684.0,0.04035807]
[1643676141993,0.88718908,2684.6,2684.0,0.04035807]
[1643676142171,2.0492163,2684.6,2684.0,0.04035807]
[1643676142372,0.1862,2684.6,2684.1,0.93142]
[1643676142572,0.70098908,2684.7,2684.1,0.93142]
[1643676142874,0.88718908,2684.9,2684.1,0.93142]
[1643676143072,0.70098908,2684.9,2684.1,0.93142]
[1643676143327,1.00098908,2684.9,2684.1,1.83590648]
[1643676143527,1.00098908,2684.9,2684.1,0.93142]
[1643676143729,0.70098908,2684.8,2684.1,0.93142]
[1643676143934,0.70098908,2684.9,2684.1,0.93142]
[1643676144328,1.00098908,2684.9,2684.1,0.93142]
[1643676145330,1.15035608,2684.9,2684.1,0.93142]
[1643676146131,1.00098908,2684.9,2684.1,0.93142]
[1643676147076,0.88718908,2685.0,2684.3,0.32434561]
[1643676147289,0.9313099,2685.1,2684.5,0.93126]
[1643676147290,0.70098908,2685.1,2684.5,0.93126]
[1643676147472,0.70098908,2685.1,2684.5,1.46626]
[1643676148474,0.70098908,2685.0,2684.5,0.93126]
[1643676148679,0.70098908,2684.9,2684.5,0.93126]
[1643676149873,0.88718908,2685.0,2684.5,0.93126]
[1643676150174,0.70098908,2685.0,2684.5,0.93126]
[1643676150912,0.70098908,2685.0,2684.5,0.88126]
[1643676151517,0.70098908,2685.0,2684.5,0.87922332]
[1643676152319,0.4862,2685.1,2684.5,0.87922332]
[1643676152320,1.18718908,2685.1,2684.5,0.87922332]
[1643676152718,1.18718908,2685.1,2684.5,0.82922332]
[1643676153932,1.00098908,2685.1,2684.5,0.82922332]
[1643676154321,0.70098908,2685.1,2684.5,0.82922332]
[1643676154974,0.1862,2685.3,2684.5,0.82922332]
[1643676154975,0.70098908,2685.2,2684.5,0.82922332]
[1643676155177,0.70098908,2685.2,2684.5,1.01542332]
[1643676156176,0.70098908,2685.1,2684.5,1.01542332]
[1643676156377,1.5677227,2685.0,2684.5,2.25232332]
[1643676156577,0.70098908,2685.2,2684.5,2.25232332]
[1643676156578,1.5677227,2684.9,2684.5,2.25232332]
[1643676156778,1.5677227,2684.8,2684.5,1.43728865]
[1643676156979,1.5677227,2684.7,2684.5,1.73728865]
[1643676157181,1.5677227,2684.6,2684.5,1.73728865]
[1643676157378,0.70098908,2685.1,2684.5,1.73728865]
[1643676157579,1.5677227,2685.0,2684.7,0.93117]
[1643676157778,1.5677227,2685.0,2684.5,1.31542332]
[1643676157779,2.26871178,2685.1,2684.5,1.7404516]
[1643676157979,1.5677227,2685.0,2684.5,1.7404516]
[1643676158212,1.5677227,2684.9,2684.5,1.7404516]
[1643676158419,1.5677227,2684.8,2684.5,0.5743516]
[1643676158619,1.5677227,2684.7,2684.5,0.5743516]
[1643676158818,0.70098908,2685.1,2684.5,1.85535838]
[1643676159018,1.5677227,2684.6,2684.5,1.85535838]
[1643676159218,1.5677227,2684.6,2684.5,2.15535838]
[1643676160223,0.70098908,2685.2,2684.5,2.15535838]
[1643676160420,0.70098908,2685.2,2684.5,1.29792202]
[1643676160622,0.70098908,2685.2,2684.5,0.8743516]
[1643676160820,0.70098908,2685.0,2684.7,0.93118]
[1643676162167,0.70098908,2685.0,2684.8,0.42918042]
[1643676162381,1.56769089,2685.2,2684.8,0.42918042]
[1643676162382,0.70098908,2685.2,2684.8,0.42918042]
[1643676162569,0.70098908,2685.2,2684.8,2.47751042]
[1643676162770,1.56769089,2685.1,2685.0,0.93091]
[1643676162970,1.56769089,2685.1,2685.0,5.16686033]
[1643676163175,0.70098908,2685.3,2685.0,5.35306033]
[1643676163376,9.089e-05,2685.7,2685.1,0.1862]
[1643676163377,0.70098908,2685.4,2685.1,0.1862]
[1643676163615,0.93449201,2685.7,2685.1,1.1862]
[1643676163616,0.65098908,2685.5,2685.1,1.1862]
[1643676163775,0.65098908,2685.5,2685.2,1.86182]
[1643676163973,0.65098908,2685.5,2685.3,0.186]
[1643676164980,0.65098908,2685.5,2685.2,2.16182]
[1643676165374,0.93449201,2685.8,2685.4,0.93093]
[1643676165826,0.93449201,2685.9,2685.4,1.23093]
[1643676166224,0.93449201,2686.0,2685.5,1.86161]
[1643676166421,0.93449201,2686.0,2685.5,2.30653258]
[1643676166826,0.93449201,2686.0,2685.6,0.81917997]
[1643676167023,0.93449201,2686.3,2685.6,0.81917997]
[1643676167224,0.93449201,2686.4,2685.6,1.11917997]
[1643676167424,0.93449201,2686.4,2685.6,1.30517997]
[1643676167628,0.93449201,2686.4,2685.7,0.18578]
[1643676168024,3.22359715,2686.3,2685.5,2.99811]
[1643676168226,0.93449201,2686.0,2685.0,10.72462]
[1643676168426,3.30498472,2685.9,2685.1,0.41215082]
[1643676168626,0.93449201,2686.0,2685.6,0.43534717]
[1643676168825,0.186,2685.9,2685.0,10.91062]
[1643676169025,0.186,2685.9,2685.2,0.86392738]
[1643676169026,0.93449201,2685.9,2685.2,0.86392738]
[1643676169226,0.78449201,2685.9,2685.2,0.86392738]
[1643676169478,0.186,2686.1,2685.2,1.16392738]
[1643676169874,2.24042611,2686.1,2685.3,0.34500798]
[1643676170071,2.24042611,2686.1,2685.2,2.31922738]
[1643676170277,2.24042611,2686.1,2685.4,0.93092]
[1643676172125,0.186,2686.1,2685.4,0.93092]
[1643676173618,0.698299,2685.9,2685.4,0.93092]
[1643676173822,0.698299,2685.9,2685.4,1.25496325]
[1643676174120,0.698299,2685.9,2685.4,1.55496325]
[1643676174522,0.698299,2686.0,2685.4,1.23092]
[1643676174721,0.698299,2685.9,2685.4,0.93092]
[1643676174920,0.698299,2686.0,2685.4,0.93092]
[1643676175120,0.698299,2685.9,2685.4,0.93092]
[1643676175320,0.698299,2686.0,2685.4,0.93092]
[1643676176526,0.698299,2685.8,2685.3,0.186]
[1643676176725,2.8279414,2685.7,2685.2,0.93102]
[1643676176967,0.698299,2685.7,2685.2,0.93102]
[1643676177868,0.698299,2685.7,2685.0,6.80715977]
[1643676178174,0.698299,2685.7,2685.0,7.10715977]
[1643676178480,2.76156087,2685.6,2685.0,3.01314234]
[1643676178670,0.186,2685.5,2685.0,2.82714234]
[1643676178871,0.884499,2685.6,2685.0,2.82714234]
[1643676179267,0.1862,2685.6,2685.0,2.82714234]
[1643676179869,0.884499,2685.6,2685.0,2.82714234]
[1643676180071,0.71089847,2685.5,2684.8,3.86]
[1643676180468,0.01259947,2685.5,2684.8,3.86]
[1643676180939,0.71089847,2685.5,2684.8,4.23757189]
[1643676181140,0.884499,2685.6,2684.9,0.93111]
[1643676181344,0.884499,2685.6,2684.8,3.86]
[1643676181345,0.698299,2685.5,2684.8,3.86]
[1643676181645,2.78078199,2685.4,2684.8,3.86]
[1643676181842,2.0827645,2685.3,2684.8,3.86]
[1643676182042,0.698299,2685.3,2684.8,3.86]
[1643676182243,2.06781802,2685.2,2684.8,3.86]
[1643676182643,2.0385547,2685.3,2684.6,0.186]
[1643676182849,0.6,2685.2,2684.5,4.6797]
[1643676183042,0.3,2685.2,2684.5,4.6797]
[1643676183247,1.56767153,2685.1,2684.5,4.6797]
[1643676183443,1.56767153,2685.0,2684.5,4.6797]
[1643676183646,1.56767153,2684.9,2684.5,4.4935]
[1643676183842,1.56767153,2684.8,2684.4,0.1862]
[1643676184044,1.56767153,2684.7,2684.4,0.1862]
[1643676184246,1.56767153,2684.6,2684.4,0.1862]
[1643676184467,0.9313241,2685.2,2684.4,0.1862]
[1643676184669,1.5677091,2685.1,2684.4,0.1862]
[1643676184872,2.05504395,2685.0,2684.4,0.1862]
[1643676185071,1.5677091,2684.9,2684.3,1.1819]
[1643676185472,1.5677091,2684.8,2684.3,1.1819]
[1643676185670,1.5677091,2684.7,2684.3,1.1819]
[1643676185876,1.5677091,2684.6,2684.4,0.1862]
[1643676186073,1.2313241,2685.2,2684.4,0.1862]
[1643676186270,1.86770256,2685.1,2684.4,0.1862]
[1643676186473,1.56770256,2685.0,2684.4,0.1862]
[1643676187871,1.56770256,2685.0,2684.3,1.41752]
[1643676188820,1.56770256,2685.0,2684.3,1.11752]
[1643676189058,1.56770256,2685.0,2684.3,0.93132]
[1643676189626,1.56770256,2685.0,2684.3,1.23132]
[1643676190226,1.56770256,2685.0,2684.4,0.1862]
[1643676190425,1.56770256,2684.9,2684.4,0.1862]
[1643676190626,1.56770256,2684.8,2684.4,0.1862]
[1643676190826,1.56770256,2684.7,2684.5,0.39493609]
[1643676191034,1.56770256,2684.6,2684.5,1.32616609]
[1643676191231,0.698299,2685.4,2684.5,3.16116609]
[1643676191429,0.149341,2685.4,2684.5,2.22993609]
[1643676191729,1.56756186,2685.3,2684.6,0.1862]
[1643676191967,1.56756186,2685.2,2684.6,0.7212]
[1643676192205,1.56756186,2685.1,2684.6,0.535]
[1643676192370,1.56756186,2685.0,2684.6,0.535]
[1643676192667,1.56756186,2684.9,2684.6,0.535]
[1643676192867,0.998299,2685.4,2684.3,0.1862]
[1643676192868,1.56756186,2684.8,2684.3,0.1862]
[1643676193068,0.884499,2685.3,2684.7,0.93109]
[1643676193280,1.56759868,2685.2,2684.7,0.93109]
[1643676193875,1.56759868,2685.2,2684.8,0.535]
[1643676194072,1.56759868,2685.2,2685.0,0.32642963]
[1643676194272,1.56759868,2685.1,2684.8,0.7212]
[1643676194472,1.56759868,2685.0,2684.8,0.7212]
[1643676194673,5.284199,2685.6,2684.9,5.13060282]
[1643676194872,1.5674077,2685.5,2684.9,5.66560282]
[1643676195071,0.1862,2685.8,2684.9,5.66560282]
[1643676195072,1.5674077,2685.4,2684.9,5.66560282]
[1643676195275,1.5674077,2685.3,2684.9,5.66560282]
[1643676195473,1.5674077,2685.2,2684.9,6.02115246]
[1643676195727,1.5674077,2685.1,2684.9,6.02115246]
[1643676195929,1.5674077,2685.0,2684.9,5.66560282]
[1643676196132,2.2657067,2685.7,2684.9,7.52759282]
[1643676196334,1.5674077,2685.6,2684.9,7.71337282]
[1643676196533,1.5674077,2685.6,2685.0,1.3]
[1643676196731,0.698299,2685.9,2685.1,0.535]
[1643676196732,1.5674077,2685.5,2685.1,0.535]
[1643676196933,0.698299,2685.9,2685.1,0.535]
[1643676196934,1.5674077,2685.4,2685.1,0.535]
[1643676197130,1.5674077,2685.3,2685.1,0.535]
[1643676197330,1.5674077,2685.2,2685.1,2.59226]
[1643676197533,1.5674077,2685.2,2685.1,1.46586]
[1643676197833,0.698299,2685.8,2685.1,1.46586]
[1643676197834,0.698299,2685.8,2685.1,2.46586]
[1643676198031,0.698299,2685.8,2685.2,2.04783]
[1643676198330,0.698299,2685.8,2685.2,2.34783]
[1643676198544,0.698299,2685.8,2685.2,2.16183]
[1643676198732,2.26564316,2685.8,2685.2,2.16183]
[1643676198934,1.56734416,2685.7,2685.2,2.16183]
[1643676199134,1.56734416,2685.6,2685.3,0.93092]
[1643676199332,1.56734416,2685.5,2685.2,1.42094688]
[1643676199578,1.56734416,2685.4,2685.2,1.42094688]
[1643676199780,1.56734416,2685.3,2685.2,1.42094688]
[1643676199981,2.53364565,2686.1,2685.5,0.43257907]
[1643676199982,0.884499,2685.8,2685.5,0.43257907]
[1643676200182,0.0126036,2686.5,2685.6,0.93084]
[1643676200183,1.56728244,2685.7,2685.6,0.93084]
[1643676200579,0.698299,2685.9,2685.6,0.93084]
[1643676200981,1.56728244,2685.8,2685.6,0.93084]
[1643676201182,1.56728244,2685.7,2685.6,0.93084]
[1643676201382,1.56728244,2685.7,2685.6,4.43084]
[1643676201586,1.56728244,2686.0,2685.6,4.73084]
[1643676201782,1.56728244,2685.9,2685.7,0.535]
[1643676201980,1.56728244,2685.8,2685.7,0.535]
[1643676202281,0.698299,2686.1,2685.7,0.535]
[1643676202580,1.56728244,2686.0,2685.7,0.535]
[1643676202785,1.56728244,2685.9,2685.7,0.535]
[1643676202981,0.698299,2686.2,2685.7,0.535]
[1643676202982,1.56728244,2685.8,2685.7,0.535]
[1643676203215,1.56728244,2685.8,2685.7,2.39633]
[1643676203417,1.56728244,2686.1,2685.7,2.58211]
[1643676203618,0.698299,2686.3,2685.7,2.58233]
[1643676203619,1.56728244,2686.0,2685.7,2.58233]
[1643676203834,0.698299,2686.2,2685.7,2.39633]
[1643676204225,2.26558144,2686.1,2685.7,2.39633]
[1643676204420,0.186,2686.4,2685.7,2.39633]
[1643676204421,1.56728244,2686.0,2685.7,2.39633]
[1643676204619,0.698299,2686.2,2685.7,2.39633]
[1643676205424,2.26558144,2686.3,2685.7,2.69633]
[1643676205626,0.93077757,2686.5,2685.7,2.39633]
[1643676205627,2.26558144,2686.2,2685.7,2.39633]
[1643676205826,1.56728244,2686.1,2685.7,2.39633]
[1643676206028,1.56728244,2686.0,2685.7,2.39633]
[1643676206227,1.56728244,2685.9,2685.7,2.39633]
[1643676206428,1.56728244,2685.8,2685.7,2.39633]
[1643676206627,0.698299,2686.1,2685.7,2.39633]
[1643676206833,0.698299,2686.2,2685.7,2.39633]
[1643676207267,0.698299,2686.1,2685.7,2.39633]
[1643676207468,1.56728244,2686.0,2685.7,2.39633]
[1643676207667,1.56728244,2685.9,2685.7,2.39633]
[1643676207871,1.56728244,2686.1,2685.7,2.39633]
[1643676208073,1.56728244,2686.0,2685.7,2.39633]
[1643676208272,0.698299,2686.3,2685.7,2.39633]
[1643676208273,1.56728244,2685.9,2685.7,2.39633]
[1643676208470,0.186,2686.4,2685.7,2.39633]
[1643676208471,1.56728244,2685.8,2685.7,2.39633]
[1643676208672,1.56728244,2686.1,2685.7,2.39633]
[1643676208871,1.56728244,2686.0,2685.7,2.39633]
[1643676209078,1.56728244,2685.9,2685.7,2.39633]
[1643676209268,1.56728244,2685.8,2685.7,2.39633]
[1643676209678,1.56728244,2685.8,2685.0,0.186]
[1643676209873,1.56728244,2685.8,2684.8,3.7233]
[1643676209874,1.75328244,2685.7,2684.8,3.7233]
[1643676210075,1.56728244,2685.6,2684.8,3.7233]
[1643676210271,1.56728244,2685.7,2684.9,0.1862]
[1643676210475,0.1862,2685.5,2684.7,1.1403]
[1643676210725,1.56728244,2685.4,2684.8,1.86206]
[1643676210933,1.56728244,2685.3,2684.9,0.93112]
[1643676211129,1.56728244,2685.5,2684.9,0.93112]
[1643676211328,1.56728244,2685.4,2684.8,1.86206]
[1643676211530,1.56728244,2685.3,2684.8,1.86206]
[1643676211829,1.56728244,2685.2,2684.8,1.86206]
[1643676212140,1.56728244,2685.1,2684.7,3.2941]
[1643676212336,2.0531736,2685.5,2684.6,0.1862]
[1643676212337,1.56728244,2685.0,2684.6,0.1862]
[1643676212530,1.56728244,2684.9,2684.6,0.1862]
[1643676212728,0.1862,2685.5,2684.6,0.1862]
[1643676212927,0.1862,2685.5,2684.5,2.86229]
[1643676212928,1.5675401,2685.4,2684.7,0.93116]
[1643676214876,1.5675401,2685.4,2684.7,1.11694]
[1643676215076,1.5675401,2685.4,2684.9,0.93093]
[1643676215276,1.5675401,2685.3,2684.9,0.93093]
[1643676215476,0.1862,2686.0,2684.9,0.93093]
[1643676215477,1.5675401,2685.2,2684.9,0.93093]
[1643676215674,1.5675401,2685.1,2684.9,4.27563]
[1643676215876,0.698299,2685.7,2684.9,4.27563]
[1643676216075,0.186,2685.6,2684.9,4.27563]
[1643676216474,1.56743943,2685.5,2684.9,4.27563]
[1643676216875,1.56743943,2685.4,2684.9,3.3447]
[1643676217081,1.56743943,2685.3,2685.0,0.93107]
[1643676217380,0.884499,2685.7,2685.0,0.93107]
[1643676217381,1.56743943,2685.2,2685.0,0.93107]
[1643676217575,1.56743943,2685.1,2685.0,0.93107]
[1643676217976,1.56743943,2685.6,2685.0,0.93107]
[1643676218217,0.1862,2685.7,2685.0,0.93107]
[1643676218218,1.56743943,2685.5,2685.0,0.93107]
[1643676218419,1.56743943,2685.4,2685.0,0.93107]
[1643676218623,1.56743943,2685.3,2685.0,0.93107]
[1643676218823,1.56743943,2685.2,2685.0,0.93107]
[1643676219024,0.1862,2685.7,2685.0,0.93107]
[1643676219223,0.698299,2685.9,2685.0,0.93107]
[1643676219224,1.56730891,2685.6,2685.0,0.93107]
[1643676219429,1.56730891,2685.5,2685.0,1.41707]
[1643676219625,1.56730891,2685.4,2685.1,1.86184]
[1643676219828,1.56730891,2685.3,2685.1,2.86184]
[1643676220029,0.698299,2685.9,2685.1,2.86184]
[1643676220225,1.56730428,2685.8,2685.1,2.86184]
[1643676220426,1.56730428,2685.7,2685.1,2.86184]
[1643676220667,1.56730428,2685.6,2685.1,3.39684]
[1643676220825,0.698299,2686.0,2685.1,3.39684]
[1643676220826,1.56730428,2685.5,2685.1,3.39684]
[1643676221026,1.56730428,2685.4,2685.1,3.39684]
[1643676221231,1.56730428,2685.3,2685.1,3.39684]
[1643676221427,0.698299,2686.0,2685.1,3.39684]
[1643676221627,0.698299,2686.0,2685.4,0.93087]
[1643676221828,0.84761,2686.0,2685.3,1.12084413]
[1643676222072,1.56727248,2685.9,2685.3,1.12084413]
[1643676222472,1.56727248,2685.8,2685.3,1.12084413]
[1643676222678,1.56727248,2685.7,2685.3,1.12084413]
[1643676222872,0.698299,2686.0,2685.3,1.12084413]
[1643676223076,2.45157148,2686.0,2685.3,1.42084413]
[1643676223275,1.56727248,2685.9,2685.3,1.42084413]
[1643676223476,1.56727248,2685.8,2685.3,1.42084413]
[1643676223678,1.56727248,2685.7,2685.3,1.42084413]
[1643676223880,2.26557148,2686.0,2685.3,1.42084413]
[1643676224374,0.698299,2686.0,2685.5,0.9309]
[1643676224575,1.56727248,2685.9,2685.5,0.9309]
[1643676224775,2.45157148,2686.0,2685.5,0.9309]
[1643676224975,2.26557148,2685.9,2685.5,0.9309]
[1643676225575,2.56557148,2685.9,2685.5,0.9309]
[1643676225825,1.56727248,2685.8,2685.3,1.12084413]
[1643676226028,1.56727248,2685.7,2685.3,1.12084413]
[1643676226523,0.186,2685.8,2685.3,1.12084413]
[1643676226524,2.45157148,2685.8,2685.3,1.12084413]
[1643676226722,1.56727248,2685.7,2685.3,1.12084413]
[1643676226922,1.56727248,2685.6,2685.3,1.12084413]
[1643676227124,1.56727248,2685.5,2685.2,0.38783394]
[1643676227325,0.149314,2686.0,2685.2,0.38783394]
[1643676227326,1.56727248,2685.4,2685.3,0.186]
[1643676227531,1.56727248,2685.4,2685.3,0.721]
[1643676227728,1.56727248,2685.9,2685.3,1.20678]
[1643676227925,1.56727248,2685.8,2685.3,1.20678]
[1643676228125,1.56727248,2685.7,2685.3,1.20678]
[1643676228326,1.56727248,2685.6,2685.3,1.20678]
[1643676228527,1.56727248,2685.5,2685.3,1.20678]
[1643676228728,0.149314,2686.0,2685.3,1.20678]
[1643676228928,1.56719219,2685.9,2685.3,23.00678]
[1643676229131,1.56719219,2685.9,2685.4,0.93083]
[1643676229332,1.56719219,2685.9,2685.4,1.93083]
[1643676230187,1.56719219,2685.9,2685.4,4.7229414]
[1643676230389,1.56719219,2685.9,2685.5,1.86147]
[1643676230582,1.56719219,2685.9,2685.5,2.16147]
[1643676231385,1.56719219,2685.8,2685.5,2.16147]
[1643676231587,1.56719219,2685.7,2685.5,2.16147]
[1643676231783,1.56719219,2685.6,2685.5,2.56682624]
[1643676231983,0.698299,2686.1,2685.5,2.56682624]
[1643676232182,0.698299,2686.1,2685.5,3.34725]
[1643676232385,0.698299,2686.1,2685.5,2.34725]
[1643676232583,2.26549119,2686.2,2685.5,2.34725]
[1643676232784,2.26549119,2686.1,2685.5,2.34725]
[1643676232988,1.56719219,2686.0,2685.5,2.34725]
[1643676233250,0.698299,2686.1,2685.7,0.93073]
[1643676233639,1.56719219,2686.0,2685.7,1.23073]
[1643676234040,1.56719219,2685.9,2685.7,1.23073]
[1643676234240,1.56719219,2685.8,2685.7,1.23073]
[1643676234539,0.698299,2686.1,2685.7,1.23073]
[1643676234742,1.56719219,2686.0,2685.7,1.23073]
[1643676234941,1.56719219,2685.9,2685.8,1.86149]
[1643676235348,0.93077757,2686.4,2685.8,1.86149]
[1643676235349,2.26549119,2686.1,2685.8,1.86149]
[1643676235551,1.56719219,2686.0,2685.8,1.86149]
[1643676235744,1.56719219,2685.9,2685.8,1.86149]
[1643676235945,0.186,2686.3,2685.8,1.86149]
[1643676235946,2.26549119,2686.2,2685.8,1.86149]
[1643676236146,1.56719219,2686.1,2685.8,1.86149]
[1643676236345,1.56719219,2686.0,2685.8,1.86149]
[1643676236649,1.56719219,2685.9,2685.8,1.86149]
[1643676237071,2.26549119,2686.3,2685.8,1.86149]
[1643676237373,1.56719219,2686.2,2685.8,1.86149]
[1643676237773,1.56719219,2686.1,2685.8,1.86149]
[1643676237976,1.56719219,2686.0,2685.8,1.86149]
[1643676238182,1.56719219,2685.9,2685.8,1.86149]
[1643676238384,0.698299,2686.2,2685.8,1.86149]
[1643676238577,2.72319695,2686.1,2685.6,0.93089]
[1643676238777,1.56719219,2686.0,2685.6,0.93089]
[1643676238976,2.26549119,2686.1,2685.6,0.93089]
[1643676239177,1.1918,2686.2,2685.6,0.93089]
[1643676239178,2.26549119,2686.0,2685.6,0.93089]
[1643676239375,1.1918,2686.2,2685.6,0.93089]
[1643676239376,1.56719219,2685.9,2685.6,0.93089]
[1643676239576,0.698299,2686.1,2685.3,9.08321]
[1643676239577,2.10305658,2685.8,2685.3,9.08321]
[1643676239776,1.56719219,2685.7,2685.1,0.93107]
[1643676239975,0.698299,2685.9,2685.1,0.93107]
[1643676239976,1.56719219,2685.6,2685.1,0.93107]
[1643676240175,1.56719219,2685.5,2685.1,0.93107]
[1643676240378,1.56719219,2685.4,2685.1,0.93107]
[1643676240579,1.56719219,2685.3,2685.1,0.93107]
[1643676240829,1.56719219,2685.2,2685.1,0.93107]
[1643676241629,0.1862,2685.6,2685.1,0.93107]
[1643676241630,1.56719219,2685.5,2685.1,0.93107]
[1643676242032,1.56719219,2685.4,2685.2,0.80752571]
[1643676242232,0.698299,2685.9,2685.2,0.80752571]
[1643676242233,1.56719219,2685.6,2685.3,1.86178]
[1643676242435,1.56724332,2685.5,2685.3,1.86178]
[1643676242731,1.56724332,2685.4,2685.3,3.16178]
[1643676242930,1.56724332,2685.4,2685.3,3.34778]
[1643676243131,2.26554232,2686.1,2685.3,3.34778]
[1643676243334,1.56714854,2686.0,2685.5,0.93074]
[1643676243530,1.56714854,2685.9,2685.5,0.93074]
[1643676243830,1.56714854,2685.8,2685.5,0.93074]
[1643676244030,1.56714854,2685.7,2685.5,0.93074]
[1643676244230,1.56714854,2685.6,2685.5,0.93074]
[1643676244480,0.698299,2686.1,2685.5,0.93074]
[1643676244873,2.26544754,2686.1,2685.5,0.93074]
[1643676245274,1.56714854,2686.0,2685.5,0.93074]
[1643676245476,1.56714854,2685.9,2685.7,0.93068]
[1643676245675,0.698299,2686.5,2685.8,7.84877862]
[1643676245881,0.698299,2686.5,2686.0,0.93056]
[1643676246074,0.698299,2686.5,2686.1,0.535]
[1643676246275,1.56691636,2686.4,2686.1,0.3]
[1643676246481,1.56691636,2686.7,2686.1,0.835]
[1643676246779,1.56691636,2686.6,2686.1,0.835]
[1643676246974,1.56691636,2686.5,2686.1,0.835]
[1643676247175,0.93077757,2686.9,2686.1,0.835]
[1643676247176,1.56691636,2686.4,2686.1,1.835]
[1643676247477,1.56691636,2686.3,2686.2,0.9257867]
[1643676247775,1.56691636,2686.8,2686.2,0.9257867]
[1643676247976,0.186,2686.9,2686.2,0.9257867]
[1643676247977,1.56691636,2686.7,2686.2,0.9257867]
[1643676248223,1.56691636,2686.6,2686.1,4.86612]
[1643676248432,1.56691636,2686.5,2686.1,3.69602]
[1643676248625,1.11677757,2686.9,2686.2,1.86101]
[1643676248626,1.56691636,2686.4,2686.2,1.86101]
[1643676248824,1.56691636,2686.3,2686.2,2.86101]
[1643676249225,0.186,2686.9,2686.2,2.86101]
[1643676249226,1.56691636,2686.7,2686.2,2.86101]
[1643676249427,1.56691636,2686.6,2686.2,2.86101]
[1643676249629,1.56691636,2686.5,2686.2,2.86101]
[1643676249831,1.56691636,2686.5,2686.0,1.86114]
[1643676249832,3.59543503,2686.4,2686.0,1.86114]
[1643676250030,1.75291636,2686.3,2686.0,1.86114]
[1643676250242,1.56691636,2686.2,2686.0,1.86114]
[1643676254177,0.94368303,2686.7,2686.1,2.78606]
[1643676254378,1.56692574,2686.6,2686.1,0.18606]
[1643676254777,1.56692574,2686.6,2686.1,1.18606]
[1643676254977,1.56692574,2686.6,2686.1,0.18606]
[1643676255176,1.56692574,2686.6,2686.1,1.18606]
[1643676255378,1.56692574,2686.5,2686.2,1.29919398]
[1643676255576,0.186,2686.9,2686.3,1.86113]
[1643676255577,1.56692574,2686.4,2686.3,1.86113]
[1643676255849,1.11677757,2686.9,2686.3,1.86113]
[1643676255850,1.56692574,2686.8,2686.3,1.86113]
[1643676256049,1.56692574,2686.7,2686.3,1.86113]
[1643676256251,1.56692574,2686.6,2686.3,1.86113]
[1643676256448,1.56692574,2686.5,2686.3,2.39613]
[1643676256647,1.56692574,2686.4,2686.3,2.39613]